fUSD/lending_fUSD_20240831
["ID","MTS","AMOUNT","RATE_DAILY","PERIOD"]
[336772847,1725132647534,-489.97103638,0.00012988,2]
[336772848,1725132647544,-500.0,0.00012988,2]
[336772849,1725132647553,-105393.00030183,0.0001299,9]
[336772850,1725132647565,-31544.8281992,0.0001299,9]
[336772851,1725132647575,-34857.86405609,0.0001299,9]
[336772852,1725132647586,-591.7,0.0001299,9]
[336772853,1725132655653,150.1,0.00030909,40]
[336772854,1725132657032,155.554048,0.00030909,40]
[336772855,1725132672182,550.0,0.00011,2]
[336772856,1725132825920,210.38,0.00010411,2]
[336772857,1725132862016,993.0,0.0003091,30]
[336772859,1725132900583,164.51,0.00010959,2]
[336772860,1725133030214,2000.0,0.0003091,30]
[336772861,1725133050460,160.0,0.0003091,30]
[336772862,1725133063103,193.0,0.0003091,30]
[336772863,1725133111161,1000.0,0.00030952,30]
[336772864,1725133111621,1000.0,0.00030952,30]
[336772865,1725133112407,1000.0,0.00030952,30]
[336772866,1725133112725,1000.0,0.00030952,30]
[336772867,1725133113189,1000.0,0.00030952,30]
[336772868,1725133113656,1000.0,0.00030952,30]
[336772869,1725133114092,1000.0,0.00030952,30]
[336772870,1725133114570,1000.0,0.00030952,30]
[336772871,1725133115048,1000.0,0.00030952,30]
[336772872,1725133115576,1000.0,0.00030952,30]
[336772873,1725133116095,1000.0,0.00030952,30]
[336772874,1725133116541,1830.386032,0.00030952,30]
[336772875,1725133251205,100000.0,0.00030952,30]
[336772876,1725133265203,100000.0,0.00030952,31]
[336772877,1725133276917,100000.0,0.00030952,32]
[336772878,1725133292411,100000.0,0.00030952,33]
[336772879,1725133339540,100000.0,0.00030952,34]
[336772880,1725133352062,100000.0,0.00030952,35]
[336772882,1725133457988,100000.0,0.00030952,30]
[336772883,1725133462096,199.86,9.948e-05,2]
[336772884,1725133462148,993.0,0.00030952,30]
[336772885,1725133467720,100000.0,0.00030952,31]
[336772886,1725133472062,100000.0,0.00030952,32]
[336772887,1725133476894,100000.0,0.00030952,33]
[336772888,1725133481862,100000.0,0.00030952,34]
[336772889,1725133489340,100000.0,0.00030952,35]
[336772890,1725133502028,100000.0,0.00030952,30]
[336772891,1725133505359,100000.0,0.00030952,31]
[336772892,1725133509981,100000.0,0.00030952,32]
[336772893,1725133519019,100000.0,0.00030952,33]
[336772894,1725133529769,9327.43059236,0.00030952,30]
[336772901,1725133695617,171.01,0.00010959,2]
[336772920,1725133832212,-269.43,0.00011843,2]
[336772921,1725133832221,-518.38990987,0.00011869,2]
[336772922,1725133832314,-281.61009013,0.00011869,2]
[336772923,1725133832325,-154.56,0.00011882,2]
[336772924,1725133832334,-248.88415722,0.00011966,2]
[336772925,1725133832422,-1698.88655578,0.00011966,2]
[336772926,1725133832432,-250.0,0.00011991,2]
[336772927,1725133832442,-250.0,0.00012026,2]
[336772928,1725133832451,-199.86,0.00012212,2]
[336772929,1725133832461,-500.0,0.000123,4]
[336772930,1725133832470,-1000.0,0.000124,4]
[336772931,1725133832479,-200.0,0.00012463,2]
[336772932,1725133832488,-499.99,0.00012463,2]
[336772933,1725133832497,-1500.0,0.000125,4]
[336772934,1725133832506,-236.48,0.00012549,2]
[336772935,1725133832515,-300.0,0.00012599,2]
[336772936,1725133832524,-2000.0,0.000126,4]
[336772937,1725133832535,-150.0,0.000127,2]
[336772938,1725133832545,-2500.0,0.000127,4]
[336772939,1725133832555,-150.0,0.000128,2]
[336772967,1725133832861,-500.0,0.000128,4]
[336772969,1725133832871,-3002.90465,0.0001286,2]
[336772970,1725133832883,-3002.90466,0.0001289,2]
[336772971,1725133832895,-150.0,0.000129,2]
[336772972,1725133832906,-20135.60283312,0.000129,2]
[336772973,1725133832915,-500.0,0.000129,4]
[336772974,1725133832925,-672.91949672,0.000129,2]
[336772975,1725133832940,-178.11099825,0.000129,2]
[336772976,1725133832950,-172.00474581,0.000129,2]
[336772977,1725133832960,-1058.69852512,0.000129,2]
[336772978,1725133832968,-311.84543466,0.000129,2]
[336772979,1725133832979,-500.0,0.00012973,2]
[336772980,1725133832989,-5792.6601177,0.0001299,9]
[336772981,1725133833001,-548.16321584,0.0001299,9]
[336772983,1725133838302,-592.08569065,0.0001299,9]
[336772984,1725133838355,-1346.82658849,0.0001299,9]
[336772985,1725133838410,-15319.79627407,0.0001299,9]
[336772986,1725133838423,-29527.50000001,0.0001299,9]
[336772987,1725133838566,-1399.32087186,0.0001299,9]
[336773188,1725133840796,-266.9152,0.0001299,9]
[336773190,1725133840810,-614.42952318,0.0001299,9]
[336773193,1725133840821,-8646.86063141,0.0001299,9]
[336773195,1725133840832,-470.89476816,0.0001299,9]
[336773197,1725133840843,-485.3980518,0.0001299,9]
[336773199,1725133840854,-975.50742252,0.0001299,9]
[336773201,1725133840865,-807.664508,0.0001299,9]
[336773204,1725133840880,-3034.40194767,0.0001299,9]
[336773206,1725133840890,-15615.97172731,0.0001299,9]
[336773209,1725133840904,-9770.25273514,0.0001299,9]
[336773211,1725133840913,-151.0,0.0001299,2]
[336773212,1725133840922,-151.0,0.0001299,2]
[336773214,1725133840933,-151.0,0.0001299,2]
[336773216,1725133840943,-151.0,0.0001299,2]
[336773218,1725133840952,-151.0,0.0001299,2]
[336773220,1725133840961,-151.0,0.0001299,2]
[336773222,1725133840971,-151.0,0.0001299,2]
[336773224,1725133840981,-151.0,0.0001299,2]
[336773226,1725133840990,-151.0,0.0001299,2]
[336773228,1725133840999,-151.0,0.0001299,2]
[336773230,1725133841008,-151.96699,0.0001299,2]
[336773232,1725133841019,-151.0,0.0001299,2]
[336773234,1725133841029,-151.0,0.0001299,2]
[336773236,1725133841038,-234.544592,0.0001299,2]
[336773238,1725133841048,-234.544592,0.0001299,2]
[336773240,1725133841059,-234.544592,0.0001299,2]
[336773242,1725133841069,-234.544592,0.0001299,2]
[336773244,1725133841078,-234.544592,0.0001299,2]
[336773246,1725133841090,-234.544592,0.0001299,2]
[336773248,1725133841100,-151.0,0.0001299,2]
[336773250,1725133841110,-151.0,0.0001299,2]
[336773252,1725133841120,-151.0,0.0001299,2]
[336773254,1725133841129,-253.690483,0.0001299,2]
[336773257,1725133841138,-151.0,0.0001299,2]
[336773258,1725133841148,-151.0,0.0001299,2]
[336773260,1725133841158,-439.58526808,0.0001299,2]
[336773262,1725133841167,-439.58526808,0.0001299,2]
[336773264,1725133841176,-151.74,0.0001299,2]
[336773266,1725133841186,-439.58526808,0.0001299,2]
[336773268,1725133841195,-151.74,0.0001299,2]
[336773270,1725133841205,-151.74,0.0001299,2]
[336773272,1725133841214,-151.74,0.0001299,2]
[336773274,1725133841224,-151.74,0.0001299,2]
[336773276,1725133841234,-151.74,0.0001299,2]
[336773278,1725133841243,-151.74,0.0001299,2]
[336773280,1725133841251,-151.74,0.0001299,2]
[336773282,1725133841261,-151.74,0.0001299,2]
[336773284,1725133841271,-151.74,0.0001299,2]
[336773286,1725133841280,-151.74,0.0001299,2]
[336773288,1725133841289,-151.74,0.0001299,2]
[336773290,1725133841298,-151.74,0.0001299,2]
[336773292,1725133841308,-151.74,0.0001299,2]
[336773294,1725133841316,-151.74,0.0001299,2]
[336773296,1725133841326,-151.74,0.0001299,2]
[336773298,1725133841339,-151.74,0.0001299,2]
[336773300,1725133841349,-151.74,0.0001299,2]
[336773302,1725133841358,-151.74,0.0001299,2]
[336773304,1725133841368,-151.74,0.0001299,2]
[336773306,1725133841378,-151.74,0.0001299,2]
[336773308,1725133841388,-151.74,0.0001299,2]
[336773310,1725133841397,-151.74,0.0001299,2]
[336773312,1725133841407,-151.74,0.0001299,2]
[336773314,1725133841416,-151.74,0.0001299,2]
[336773316,1725133841426,-151.74,0.0001299,2]
[336773318,1725133841435,-151.74,0.0001299,2]
[336773320,1725133841444,-151.74,0.0001299,2]
[336773322,1725133841453,-151.74,0.0001299,2]
[336773324,1725133841462,-151.74,0.0001299,2]
[336773326,1725133841471,-151.74,0.0001299,2]
[336773328,1725133841480,-151.74,0.0001299,2]
[336773330,1725133841490,-151.74,0.0001299,2]
[336773332,1725133841499,-151.74,0.0001299,2]
[336773334,1725133841508,-151.74,0.0001299,2]
[336773336,1725133841517,-151.74,0.0001299,2]
[336773338,1725133841526,-151.74,0.0001299,2]
[336773340,1725133841535,-151.74,0.0001299,2]
[336773342,1725133841544,-151.74,0.0001299,2]
[336773344,1725133841554,-151.74,0.0001299,2]
[336773345,1725133841563,-151.74,0.0001299,2]
[336773346,1725133841572,-151.74,0.0001299,2]
[336773347,1725133841581,-151.74,0.0001299,2]
[336773348,1725133841590,-151.74,0.0001299,2]
[336773349,1725133841599,-151.74,0.0001299,2]
[336773350,1725133841608,-151.74,0.0001299,2]
[336773351,1725133841617,-151.74,0.0001299,2]
[336773352,1725133841626,-151.74,0.0001299,2]
[336773353,1725133841635,-151.74,0.0001299,2]
[336773355,1725133841644,-151.0,0.00012997,2]
[336773356,1725133841653,-234.544592,0.00012997,2]
[336773357,1725133841662,-234.544592,0.00012997,2]
[336773358,1725133841672,-151.0,0.00012997,2]
[336773360,1725133841681,-151.0,0.00012997,2]
[336773362,1725133841690,-151.0,0.00012997,2]
[336773364,1725133841699,-151.0,0.00012997,2]
[336773366,1725133841708,-151.0,0.00012997,2]
[336773368,1725133841717,-151.0,0.00012997,2]
[336773370,1725133841727,-1258.0,0.00012999,2]
[336773372,1725133841736,-1503.111,0.00012999,2]
[336773374,1725133841745,-443.266,0.00012999,2]
[336773376,1725133841753,-150.0,0.00012999,2]
[336773378,1725133841763,-241.33539938,0.00012999,2]
[336773380,1725133841772,-430.72793259,0.00012999,2]
[336773382,1725133841782,-331.85122983,0.00012999,2]
[336773384,1725133841791,-573.0,0.00013,2]
[336773386,1725133841800,-1442.25389281,0.00013,2]
[336773390,1725133841821,-5816794.00628879,0.00013,2]
[336773392,1725133841830,-1000.0,0.00013,2]
[336773393,1725133841840,-1000.0,0.00013,2]
[336773395,1725133841849,-1000.0,0.00013,2]
[336773398,1725133841859,-1000.0,0.00013,2]
[336773400,1725133841869,-1000.0,0.00013,2]
[336773402,1725133841879,-1000.0,0.00013,2]
[336773404,1725133841889,-1000.0,0.00013,2]
[336773406,1725133841899,-1000.0,0.00013,2]
[336773408,1725133841909,-1000.0,0.00013,2]
[336773410,1725133841918,-1000.0,0.00013,2]
[336773412,1725133841927,-1000.0,0.00013,2]
[336773414,1725133841940,-1000.0,0.00013,2]
[336773416,1725133841949,-1000.0,0.00013,2]
[336773418,1725133841959,-770.58889893,0.00013,2]
[336773420,1725133841968,-736741.65130641,0.00013,2]
[336773422,1725133841986,-485.945,0.00013,2]
[336773424,1725133841997,-412.39,0.00013,2]
[336773427,1725133842010,-508.47077684,0.00013,2]
[336773429,1725133842026,-93887.53637394,0.00013,2]
[336773432,1725133842043,-24501.30584867,0.00013,2]
[336773434,1725133842056,-45222.58915305,0.00013,2]
[336773436,1725133842067,-4585.45151135,0.00013,2]
[336773438,1725133842079,-977.31896443,0.00013,2]
[336773441,1725133842102,-308.94361421,0.00013,2]
[336773565,1725133843314,-313.505555,0.00013,2]
[336773567,1725133843326,-333.59523142,0.00013,2]
[336773570,1725133843339,-3506.12,0.00013,2]
[336773572,1725133843350,-745.08646596,0.00013,2]
[336773699,1725133845097,-40202.10488403,0.00013,2]
[336773700,1725133845109,-529.22824999,0.00013,2]
[336773701,1725133845121,-3476.63696484,0.00013,2]
[336773702,1725133845132,-865.26308682,0.00013,2]
[336773703,1725133845142,-544.769496,0.00013,2]
[336773704,1725133845166,-6180.65784,0.00013,2]
[336773705,1725133845178,-2405.58776097,0.00013,2]
[336773706,1725133845189,-1044.24366106,0.00013,2]
[336773707,1725133845201,-24149.19161144,0.00013,2]
[336773708,1725133845213,-5925.69599542,0.00013,2]
[336773709,1725133845224,-303.54627119,0.00013,2]
[336773710,1725133845235,-394.59,0.00013,2]
[336773711,1725133845247,-1061.28,0.00013,2]
[336773713,1725133845259,-6016.2,0.00013,2]
[336773716,1725133845270,-5988.50674018,0.00013,2]
[336773718,1725133845281,-441.78039394,0.00013,2]
[336773721,1725133845301,-15384.41003735,0.00013,2]
[336773723,1725133845313,-258.105,0.00013,2]
[336773735,1725133846210,-150.0,0.00012999,2]
[336773736,1725133846219,-1262.93673964,0.00013,2]
[336773737,1725133846264,-4281.0519054,0.00013,2]
[336773738,1725133846276,-17853.34084675,0.00013,2]
[336773739,1725133846318,-1140.33466279,0.00013,2]
[336773740,1725133846329,-4883.9047737,0.00013,2]
[336773741,1725133846340,-47891.75421239,0.00013,2]
[336773742,1725133846353,-90102.38135672,0.00013,2]
[336773743,1725133846372,-382.48411786,0.00013,2]
[336773744,1725133846427,-908.94469596,0.00013,2]
[336773745,1725133846490,-4068.391154,0.00013,2]
[336773746,1725133846536,-1449.96550931,0.00013,2]
[336773747,1725133846547,-132033.35882538,0.00013,2]
[336773748,1725133846559,-591.5645175,0.00013,2]
[336773750,1725134211551,152.52,0.00010959,2]
[336773751,1725134479631,550.0,0.00011,2]
[336773753,1725134718670,206.28,0.00010959,2]
[336773754,1725134719930,214.32,0.00010367,2]
[336773755,1725134795483,200.0,0.00010904,2]
[336773818,1725135031506,-318.553,0.00011643,2]
[336773819,1725135031515,-626.65179722,0.00012095,2]
[336773820,1725135031527,-238.74041541,0.00012095,2]
[336773821,1725135031536,-250.0,0.00012157,2]
[336773822,1725135031546,-1000.0,0.00012195,2]
[336773823,1725135031555,-250.0,0.00012232,2]
[336773824,1725135031566,-269.43,0.0001237,2]
[336773825,1725135031575,-189.18,0.00012468,2]
[336773826,1725135031586,-214.32,0.00012631,2]
[336773827,1725135031595,-300.0,0.00012899,2]
[336773828,1725135031604,-311.84543466,0.000129,2]
[336773829,1725135031614,-236.45909106,0.000129,2]
[336773830,1725135031623,-178.11099822,0.000129,2]
[336773831,1725135031632,-499.99,0.000129,2]
[336773832,1725135031641,-150.0,0.00012972,2]
[336773833,1725135031650,-152.05,0.0001299,2]
[336773834,1725135031659,-150.0,0.00012999,2]
[336773835,1725135031669,-515.0,0.00013,2]
[336773837,1725135031678,-5269.16067724,0.00013,2]
[336773839,1725135031689,-627.85298596,0.00013,2]
[336773842,1725135031704,-14201.48249161,0.00013,2]
[336773843,1725135031723,-1440.43885463,0.00013,2]
[336773844,1725135031735,-706.11031433,0.00013,2]
[336773854,1725135037496,-18263.915,0.00013,2]
[336773855,1725135037508,-13476.77280012,0.00013,2]
[336773856,1725135037519,-9746.0812549,0.00013,2]
[336773857,1725135037529,-500.0,0.00013,2]
[336773858,1725135037538,-500.0,0.00013,2]
[336773859,1725135037548,-500.0,0.00013,2]
[336773860,1725135037557,-625.0,0.00013,2]
[336773861,1725135037567,-15609.64613981,0.00013,2]
[336773862,1725135037578,-4392.91305409,0.00013,2]
[336773863,1725135037598,-1051.74850456,0.00013,2]
[336773864,1725135037608,-540.65357155,0.00013,2]
[336773865,1725135037623,-1364.83123837,0.00013,2]
[336773866,1725135037635,-264.24,0.00013,2]
[336773867,1725135037713,-1698.02186945,0.00013,2]
[336773868,1725135037724,-762.69359376,0.00013,2]
[336773869,1725135037736,-475.14527595,0.00013,2]
[336773870,1725135037748,-567.02253439,0.00013,2]
[336773871,1725135037759,-4461.84790807,0.00013,2]
[336773872,1725135037771,-5533.35431226,0.00013,2]
[336773873,1725135037804,-741.01448344,0.00013,2]
[336773874,1725135037816,-2939.9999999,0.00013,2]
[336773875,1725135037827,-279.36,0.00013,2]
[336773876,1725135037840,-1266.25068988,0.00013,2]
[336773877,1725135037851,-464.27999997,0.00013,2]
[336773878,1725135037871,-27584.05971406,0.00013,2]
[336774031,1725135039398,-12929.70706889,0.00013,2]
[336774041,1725135039453,-1818.9,0.00013,2]
[336774052,1725135039511,-7483.43774575,0.00013,2]
[336774060,1725135039561,-1458.60945539,0.00013,2]
[336774062,1725135039573,-3031.43850912,0.00013,2]
[336774064,1725135039586,-1785.82599457,0.00013,2]
[336774066,1725135039598,-19004.07780853,0.00013,2]
[336774069,1725135039620,-1086.34670665,0.00013,2]
[336774072,1725135039631,-320.10297877,0.00013,2]
[336774074,1725135039643,-1502.36748721,0.00013,2]
[336774076,1725135039654,-535.85788251,0.00013,2]
[336774078,1725135039666,-1534.61932229,0.00013,2]
[336774205,1725135041818,-172.00474581,0.000129,2]
[336774206,1725135041828,-68791.51178494,0.00013,2]
[336774207,1725135041872,-13765.41875351,0.00013,2]
[336774208,1725135041883,-1352.08206824,0.00013,2]
[336774209,1725135041894,-10789.72684987,0.00013,2]
[336774210,1725135041905,-2824.19193427,0.00013,2]
[336774211,1725135041916,-1952.46287706,0.00013,2]
[336774212,1725135041935,-338.0226125,0.00013,2]
[336774213,1725135041945,-359.58943198,0.00013,2]
[336774214,1725135041956,-643.23488832,0.00013,2]
[336774215,1725135041967,-2837.74696614,0.00013,2]
[336774216,1725135041978,-2806.8,0.00013,2]
[336774217,1725135041988,-312.004999,0.00013,2]
[336774218,1725135041999,-19357.1500304,0.00013,2]
[336774219,1725135042011,-18527.41837375,0.00013,2]
[336774220,1725135042022,-1031.00172718,0.00013,2]
[336774221,1725135042032,-4285.81638443,0.00013,2]
[336774222,1725135042061,-4693.47067186,0.00013,2]
[336774223,1725135042072,-27089.17785513,0.00013,2]
[336774224,1725135042084,-1617.592005,0.00013,2]
[336774226,1725135042095,-1363.68834929,0.00013,2]
[336774227,1725135042107,-2023.404,0.00013,2]
[336774230,1725135042118,-587.72819476,0.00013,2]
[336774232,1725135042131,-837.74750378,0.00013,2]
[336774234,1725135042143,-11992.0362,0.00013,2]
[336774243,1725135042415,-6855.90067227,0.00013,2]
[336774244,1725135042428,-361.01292754,0.00013,2]
[336774245,1725135042470,-34105.91719769,0.00013,2]
[336774246,1725135042482,-21986.27470492,0.00013,2]
[336774247,1725135042494,-10877.31968114,0.00013,2]
[336774248,1725135042506,-332.4976,0.00013,2]
[336774249,1725135042519,-1201.87353666,0.00013,2]
[336774250,1725135042530,-8457.3627112,0.00013,2]
[336774394,1725135044280,-682.39886699,0.00013,2]
[336774397,1725135044297,-370.19267968,0.00013,2]
[336774399,1725135044308,-6654.157102,0.00013,2]
[336774401,1725135044318,-1738.02113,0.00013,2]
[336774403,1725135044330,-564.29514693,0.00013,2]
[336774405,1725135044346,-2627.76022133,0.00013,2]
[336774407,1725135044357,-175726.7728549,0.00013,2]
[336774410,1725135044367,-1325.20799028,0.00013,2]
[336774412,1725135044378,-532.35328105,0.00013,2]
[336774415,1725135044401,-563.14413102,0.00013,2]
[336774418,1725135044412,-781.874423,0.00013,2]
[336774420,1725135044423,-330.5,0.00013,2]
[336774423,1725135044447,-2939.32172658,0.00013,2]
[336774425,1725135044458,-4491.72001492,0.00013,2]
[336774428,1725135044470,-651.33802245,0.00013,2]
[336774430,1725135044483,-22420.08937347,0.00013,2]
[336774432,1725135044496,-5983.9,0.00013,2]
[336774434,1725135044508,-585.395015,0.00013,2]
[336774437,1725135044519,-1058.55765,0.00013,2]
[336774439,1725135044531,-1232.8790104,0.00013,2]
[336774441,1725135044544,-1202.25829331,0.00013,2]
[336774443,1725135044555,-5242.74940921,0.00013,2]
[336774446,1725135044566,-704.73796183,0.00013,2]
[336774448,1725135044577,-1385.902562,0.00013,2]
[336774450,1725135044588,-39505.50035457,0.00013,2]
[336774452,1725135044599,-5971.9,0.00013,2]
[336774534,1725135045448,-1279.24288077,0.00013,2]
[336774536,1725135045460,-501.20316289,0.00013,2]
[336774538,1725135045471,-4820.23284281,0.00013,2]
[336774541,1725135045484,-8212.42891304,0.00013,2]
[336774543,1725135045495,-2457.38273895,0.00013,2]
[336774545,1725135045506,-1865.23497668,0.00013,2]
[336774547,1725135045520,-23938.32502418,0.00013,2]
[336774550,1725135045535,-520.42458624,0.00013,2]
[336774552,1725135045546,-1499.90008,0.00013,2]
[336774554,1725135045559,-493.09011844,0.00013,2]
[336774556,1725135045570,-3987.91705982,0.00013,2]
[336774559,1725135045582,-765.67486631,0.00013,2]
[336774561,1725135045593,-324.95834368,0.00013,2]
[336774563,1725135045604,-1991.23881728,0.00013,2]
[336774565,1725135045617,-6676.43119304,0.00013,2]
[336774567,1725135045628,-6653.2513662,0.00013,2]
[336774569,1725135045639,-50180.900616,0.00013,2]
[336774572,1725135045652,-1434.79165165,0.00013,2]
[336774574,1725135045663,-569.62893995,0.00013,2]
[336774576,1725135045675,-2034.9400001,0.00013,2]
[336774578,1725135045686,-924.64607863,0.00013,2]
[336774580,1725135045697,-2630.82659408,0.00013,2]
[336774583,1725135045708,-1644.15644672,0.00013,2]
[336774585,1725135045719,-1303.17693193,0.00013,2]
[336774587,1725135045731,-584.95999,0.00013,2]
[336774589,1725135045743,-2046.26165249,0.00013,2]
[336774592,1725135045755,-3187.19048631,0.00013,2]
[336774594,1725135045766,-2238.27476078,0.00013,2]
[336774596,1725135045777,-266.39857557,0.00013,2]
[336774599,1725135045793,-371.08009368,0.00013,2]
[336774601,1725135045804,-2986.04364799,0.00013,2]
[336774604,1725135045820,-1308.51120063,0.00013,2]
[336774606,1725135045833,-746.22474826,0.00013,2]
[336774608,1725135045843,-2087.08,0.00013,2]
[336774610,1725135045854,-3651.45990221,0.00013,2]
[336774613,1725135045867,-1384.9877526,0.00013,2]
[336774615,1725135045878,-500.0,0.00013,2]
[336774617,1725135045890,-48751.96682396,0.00013,2]
[336774619,1725135045902,-6154.01807628,0.00013,2]
[336774845,1725135219337,210.74,0.00010781,2]
[336774846,1725135225461,154.29,0.00010959,2]
[336774848,1725135754214,219.1,0.00010515,2]
[336774850,1725135876337,164.51,0.00010959,2]
[336774851,1725135908549,1050.0,0.0001099,2]
[336774852,1725135919506,7596.62692416,9e-05,2]
[336774853,1725135953233,3872.211906,0.00010399,2]
[336774854,1725135953815,5892.70630152,6.94e-05,2]
[336774860,1725136079100,204.62312072,0.0001,2]
[336774864,1725136114125,7044.46696384,0.00010998,2]
[336774881,1725136231527,-200.0,0.00012026,2]
[336774883,1725136231537,-839.2412,0.00012238,2]
[336774884,1725136231547,-196.8,0.00012338,2]
[336774886,1725136231556,-250.0,0.00012338,2]
[336774887,1725136231566,-279.35,0.0001235,2]
[336774888,1725136231575,-250.0,0.00012408,2]
[336774889,1725136231586,-800.0,0.00012511,2]
[336774890,1725136231595,-325.56050951,0.00012593,2]
[336774891,1725136231606,-16060.70194911,0.00012593,2]
[336774892,1725136231618,-341.42630098,0.00012593,2]
[336774893,1725136231638,-5196.30280894,0.00012593,2]
[336774894,1725136231648,-151.94,0.0001267,2]
[336774895,1725136231658,-1060.07702425,0.0001267,2]
[336774896,1725136231668,-500.0,0.00012673,2]
[336774897,1725136231677,-91.85273168,0.00012679,2]
[336774898,1725136231690,-231.51682786,0.00012679,2]
[336774899,1725136231699,-150.0,0.00012679,2]
[336774900,1725136231709,-126.95515928,0.0001268,2]
[336774901,1725136231720,-418.90217464,0.0001268,2]
[336774902,1725136231731,-1095.83864939,0.0001268,2]
[336774903,1725136231750,-274023.37234462,0.0001268,2]
[336774924,1725136236399,227.06,0.00010763,2]
[336774931,1725136237650,-544.37084928,0.0001268,2]
[336774932,1725136237705,-1804.2,0.0001268,2]
[336774935,1725136239682,-32991.37224146,0.0001268,2]
[336774936,1725136239914,-350.10356436,0.0001268,2]
[336774944,1725136244399,-12139.74711895,0.0001268,2]
[336774945,1725136244417,-28247.90274431,0.0001268,2]
[336774948,1725136245730,-329.968208,0.0001268,2]
[336774949,1725136245860,-2054.58570091,0.0001268,2]
[336774950,1725136287871,550.0,0.00011,2]
[336774952,1725136351043,170.96,0.00010959,2]
[336774953,1725136787838,234.68,9.811e-05,2]
[336774954,1725136999742,2000.0,0.00024,120]
[336774955,1725137013390,200.0,0.00024,120]
[336774956,1725137055674,175.96,9.287e-05,2]
[336774957,1725137149073,152.52,0.00010959,2]
[336774964,1725137310883,261.01,9.419e-05,2]
[336774969,1725137431709,-153.65,0.00011183,2]
[336774970,1725137431720,-153.65,0.00011191,2]
[336774971,1725137431729,-153.65,0.00011199,2]
[336774972,1725137431740,-153.65,0.00011207,2]
[336774973,1725137431749,-422.8165601,0.00011209,2]
[336774974,1725137431759,-153.65,0.00011215,2]
[336774975,1725137431769,-153.65,0.00011223,2]
[336774976,1725137431778,-153.65,0.00011231,2]
[336774977,1725137431788,-153.65,0.00011239,2]
[336774978,1725137431797,-422.81656009,0.00011262,2]
[336774979,1725137431808,-445.42,0.00011301,2]
[336774980,1725137431818,-163.22,0.00011303,2]
[336774981,1725137431828,-175.84,0.00011309,2]
[336774982,1725137431838,-422.81656009,0.00011315,2]
[336774983,1725137431847,-603.91,0.00011415,2]
[336774984,1725137431857,-5133.23049675,0.00011442,2]
[336774985,1725137431974,-6376.9,0.00011442,2]
[336774987,1725137431985,-2195.73008022,0.00011442,2]
[336774988,1725137432005,-3331.88002399,0.00011442,2]
[336774991,1725137437884,-1352.07328804,0.00011442,2]
[336774992,1725137437895,-1475.64,0.00011442,2]
[336774993,1725137437917,-1868.96480563,0.00011442,2]
[336775000,1725137439783,-2000.0,0.00011339,2]
[336775001,1725137439793,-2165.58130537,0.00011442,2]
[336775002,1725137439802,-160.0,0.00011465,2]
[336775003,1725137439811,-10000.0,0.00011509,2]
[336775004,1725137439821,-250.0,0.00011515,2]
[336775005,1725137439830,-250.0,0.00011587,2]
[336775006,1725137439839,-508.25,0.00011624,2]
[336775007,1725137439849,-250.0,0.00011635,2]
[336775008,1725137439858,-261.01,0.00011683,2]
[336775009,1725137439867,-360.94,0.0001172,2]
[336775010,1725137439877,-150.0,0.000118,2]
[336775011,1725137439886,-150.0,0.000118,2]
[336775012,1725137439895,-150.0,0.000118,2]
[336775013,1725137439905,-150.0,0.000118,2]
[336775014,1725137439914,-840.0,0.00011821,2]